[Event "*** Titled Tuesday Blitz"]
[Site "Chess.com"]
[Date "2021.03.02"]
[Round "6"]
[White "serhanberat_ozdemir"]
[Black "jposthuma"]
[Result "1-0"]
[WhiteElo "2546"]
[BlackElo "2710"]
[TimeControl "180+1"]
[EndTime "11:06:00 PST"]
[Termination "serhanberat_ozdemir won by checkmate"]

1. e4 {[%clk 0:03:00.9]} 1... c6 {[%clk 0:03:00.1]} 2. d4 {[%clk 0:03:00.9]}
2... d5 {[%clk 0:03:01]} 3. exd5 {[%clk 0:03:01.7]} 3... cxd5 {[%clk 0:03:01.9]}
4. c4 {[%clk 0:03:02.2]} 4... Nf6 {[%clk 0:03:02.4]} 5. Nc3 {[%clk 0:03:02.8]}
5... Nc6 {[%clk 0:03:02.6]} 6. Bg5 {[%clk 0:03:03.5]} 6... Qa5 {[%clk 0:03:02]}
7. Nf3 {[%clk 0:02:43.9]} 7... Ne4 {[%clk 0:02:56.4]} 8. cxd5 {[%clk 0:02:38.8]}
8... Nxg5 {[%clk 0:02:33.9]} 9. Nxg5 {[%clk 0:02:37.9]} 9... Nb8 {[%clk
0:02:13.7]} 10. Qf3 {[%clk 0:02:30.8]} 10... f6 {[%clk 0:02:00.7]} 11. Bb5+
{[%clk 0:02:29.6]} 11... Bd7 {[%clk 0:01:58.1]} 12. Bxd7+ {[%clk 0:02:26.2]}
12... Nxd7 {[%clk 0:01:59]} 13. Ne6 {[%clk 0:02:26.6]} 13... Rc8 {[%clk
0:01:53.3]} 14. O-O {[%clk 0:02:24.3]} 14... g6 {[%clk 0:01:49.6]} 15. Rfe1
{[%clk 0:02:22.5]} 15... Bh6 {[%clk 0:01:47.6]} 16. Re2 {[%clk 0:02:15.1]} 16...
Kf7 {[%clk 0:01:44.7]} 17. Rae1 {[%clk 0:02:12.9]} 17... Rce8 {[%clk 0:01:34.8]}
18. d6 {[%clk 0:02:10.7]} 18... Qb4 {[%clk 0:00:54.2]} 19. Qd5 {[%clk
0:01:59.8]} 19... g5 {[%clk 0:00:01.1]} 20. Nxg5+ {[%clk 0:01:30.8]} 20... Kg6
{[%clk 0:00:01.3]} 21. Qf7+ {[%clk 0:01:31.3]} 21... Kxg5 {[%clk 0:00:01.9]} 22.
Ne4+ {[%clk 0:01:31.6]} 22... Kf4 {[%clk 0:00:02]} 23. g3+ {[%clk 0:01:06.6]}
23... Kf5 {[%clk 0:00:02.1]} 24. Qh5+ {[%clk 0:01:00.6]} 24... Ke6 {[%clk
0:00:02.6]} 25. d5# {[%clk 0:00:56]} 1-0

[Event "*** Titled Tuesday Blitz"]
[Site "Chess.com"]
[Date "2021.03.02"]
[Round "6"]
[White "JimmmyZhang"]
[Black "KetiGrant"]
[Result "0-1"]
[WhiteElo "2475"]
[BlackElo "2355"]
[TimeControl "180+1"]
[EndTime "11:06:01 PST"]
[Termination "KetiGrant won by checkmate"]

1. d4 {[%clk 0:02:57.2]} 1... Nf6 {[%clk 0:02:59.4]} 2. Nf3 {[%clk 0:02:55.9]}
2... g6 {[%clk 0:02:59.7]} 3. Nc3 {[%clk 0:02:55.5]} 3... Bg7 {[%clk 0:03:00.6]}
4. Bg5 {[%clk 0:02:54.6]} 4... d5 {[%clk 0:03:00.3]} 5. e3 {[%clk 0:02:54.4]}
5... h6 {[%clk 0:02:58.5]} 6. Bh4 {[%clk 0:02:53.6]} 6... Nbd7 {[%clk
0:02:55.4]} 7. Bd3 {[%clk 0:02:50]} 7... c5 {[%clk 0:02:50.5]} 8. dxc5 {[%clk
0:02:49]} 8... Nxc5 {[%clk 0:02:50.5]} 9. O-O {[%clk 0:02:42.2]} 9... Nxd3
{[%clk 0:02:48.2]} 10. cxd3 {[%clk 0:02:38.1]} 10... O-O {[%clk 0:02:47.1]} 11.
Rc1 {[%clk 0:02:37.2]} 11... a6 {[%clk 0:02:34.5]} 12. h3 {[%clk 0:02:30.9]}
12... Nh5 {[%clk 0:02:26.2]} 13. g4 {[%clk 0:02:29.2]} 13... Nf6 {[%clk
0:02:25.3]} 14. Bg3 {[%clk 0:02:28.9]} 14... h5 {[%clk 0:02:15.7]} 15. g5 {[%clk
0:02:27.5]} 15... Ne8 {[%clk 0:02:12.7]} 16. h4 {[%clk 0:02:15.1]} 16... Bh3
{[%clk 0:02:11.2]} 17. Re1 {[%clk 0:01:59.3]} 17... Bg4 {[%clk 0:02:10.5]} 18.
Kg2 {[%clk 0:01:58.1]} 18... f6 {[%clk 0:02:07.5]} 19. Qb3 {[%clk 0:01:39.6]}
19... e6 {[%clk 0:01:53.5]} 20. Nd4 {[%clk 0:01:23.7]} 20... fxg5 {[%clk
0:01:50.5]} 21. hxg5 {[%clk 0:01:22.6]} 21... Qxg5 {[%clk 0:01:45.1]} 22. f4
{[%clk 0:01:21.4]} 22... Qe7 {[%clk 0:01:39.3]} 23. Rh1 {[%clk 0:01:04]} 23...
Nd6 {[%clk 0:01:37.9]} 24. Rce1 {[%clk 0:01:02.2]} 24... Qf7 {[%clk 0:01:19]}
25. Nf3 {[%clk 0:00:56]} 25... Nf5 {[%clk 0:01:08.5]} 26. Ng5 {[%clk 0:00:51.9]}
26... Qd7 {[%clk 0:01:08.5]} 27. Bf2 {[%clk 0:00:51.1]} 27... Bf6 {[%clk
0:01:08.2]} 28. e4 {[%clk 0:00:50]} 28... Nd4 {[%clk 0:01:02.5]} 29. Bxd4 {[%clk
0:00:46.5]} 29... Bxd4 {[%clk 0:01:02.2]} 30. exd5 {[%clk 0:00:47.2]} 30... Rxf4
{[%clk 0:00:56.8]} 31. Re4 {[%clk 0:00:43.1]} 31... Rf2+ {[%clk 0:00:52.1]} 32.
Kg3 {[%clk 0:00:42.1]} 32... Qd6+ {[%clk 0:00:46.8]} 33. Kh4 {[%clk 0:00:41.1]}
33... Rh2+ {[%clk 0:00:42.7]} 34. Nh3 {[%clk 0:00:40.9]} 34... Bf6# {[%clk
0:00:37.6]} 0-1

[Event "*** Titled Tuesday Blitz"]
[Site "Chess.com"]
[Date "2021.03.02"]
[Round "6"]
[White "PelinGorki"]
[Black "FeketeBarika"]
[Result "0-1"]
[WhiteElo "2535"]
[BlackElo "2294"]
[TimeControl "180+1"]
[EndTime "11:06:04 PST"]
[Termination "FeketeBarika won on time"]

1. e4 {[%clk 0:03:00.9]} 1... e6 {[%clk 0:02:56.6]} 2. Nc3 {[%clk 0:03:01.3]}
2... d5 {[%clk 0:02:55.5]} 3. d4 {[%clk 0:03:02.2]} 3... Nf6 {[%clk 0:02:52.3]}
4. e5 {[%clk 0:03:02.5]} 4... Nfd7 {[%clk 0:02:51.6]} 5. f4 {[%clk 0:03:03.1]}
5... c5 {[%clk 0:02:52.3]} 6. Nf3 {[%clk 0:03:04]} 6... Nc6 {[%clk 0:02:52.8]}
7. dxc5 {[%clk 0:03:04.9]} 7... Nxc5 {[%clk 0:02:51.9]} 8. Bd3 {[%clk
0:03:05.8]} 8... Nxd3+ {[%clk 0:02:51.3]} 9. cxd3 {[%clk 0:03:03.6]} 9... Be7
{[%clk 0:02:52.2]} 10. O-O {[%clk 0:03:03.4]} 10... O-O {[%clk 0:02:52.6]} 11.
Bd2 {[%clk 0:02:53.5]} 11... b6 {[%clk 0:02:51.9]} 12. Kh1 {[%clk 0:02:52.3]}
12... Ba6 {[%clk 0:02:48.3]} 13. Ne1 {[%clk 0:02:36]} 13... Nb4 {[%clk
0:02:46.4]} 14. Rf3 {[%clk 0:02:34.2]} 14... d4 {[%clk 0:02:44.3]} 15. Ne4
{[%clk 0:02:31.7]} 15... Nd5 {[%clk 0:02:44.8]} 16. Rh3 {[%clk 0:02:30.8]} 16...
g6 {[%clk 0:02:43.1]} 17. Qg4 {[%clk 0:02:22.1]} 17... Rc8 {[%clk 0:02:41.7]}
18. Rh6 {[%clk 0:02:19.4]} 18... Kg7 {[%clk 0:02:30]} 19. Qh3 {[%clk 0:02:16.4]}
19... Rh8 {[%clk 0:02:29.9]} 20. Nf3 {[%clk 0:02:16.5]} 20... Bxd3 {[%clk
0:02:27.6]} 21. Nfg5 {[%clk 0:02:15]} 21... Qg8 {[%clk 0:02:04.3]} 22. Qxd3
{[%clk 0:01:18.8]} 22... Kxh6 {[%clk 0:02:02.8]} 23. f5 {[%clk 0:01:19.3]} 23...
exf5 {[%clk 0:01:45.7]} 24. Ne6+ {[%clk 0:00:18.6]} 24... Ne3 {[%clk 0:01:45.4]}
25. Qxd4 {[%clk 0:00:05.3]} 25... fxe6 {[%clk 0:01:41.7]} 26. Bxe3+ {[%clk
0:00:04.5]} 26... Kg7 {[%clk 0:01:42.1]} 27. Nf6 {[%clk 0:00:03.1]} 27... Qd8
{[%clk 0:01:38.2]} 28. Qh4 {[%clk 0:00:02.6]} 28... Bxf6 {[%clk 0:01:32.9]} 29.
exf6+ {[%clk 0:00:01.9]} 29... Qxf6 {[%clk 0:01:33.8]} 30. Qh6+ {[%clk
0:00:01.8]} 30... Kf7 {[%clk 0:01:33.6]} 31. Rd1 {[%clk 0:00:01.7]} 31... Rcd8
{[%clk 0:01:32.6]} 32. Re1 {[%clk 0:00:02.1]} 32... e5 {[%clk 0:01:32.1]} 33.
Bg5 {[%clk 0:00:02.5]} 33... Qg7 {[%clk 0:01:31.3]} 34. Qh4 {[%clk 0:00:02]}
34... Rd4 {[%clk 0:01:30.1]} 35. Qf2 {[%clk 0:00:01.6]} 35... Rc8 {[%clk
0:01:27.9]} 36. Qf1 {[%clk 0:00:01.3]} 36... e4 {[%clk 0:01:25.7]} 0-1

[Event "*** Titled Tuesday Blitz"]
[Site "Chess.com"]
[Date "2021.03.02"]
[Round "6"]
[White "Rodalquilar"]
[Black "SGchess01"]
[Result "0-1"]
[WhiteElo "2639"]
[BlackElo "2850"]
[TimeControl "180+1"]
[EndTime "11:06:07 PST"]
[Termination "SGchess01 won on time"]

1. d4 {[%clk 0:03:00.9]} 1... Nf6 {[%clk 0:03:00]} 2. Bf4 {[%clk 0:03:01]} 2...
b6 {[%clk 0:02:53.8]} 3. e3 {[%clk 0:03:00.8]} 3... Bb7 {[%clk 0:02:54.2]} 4.
Nd2 {[%clk 0:03:01.3]} 4... g6 {[%clk 0:02:54.8]} 5. h3 {[%clk 0:03:00.8]} 5...
Bg7 {[%clk 0:02:55.4]} 6. Ngf3 {[%clk 0:03:01.4]} 6... O-O {[%clk 0:02:55.8]} 7.
Be2 {[%clk 0:03:02]} 7... c5 {[%clk 0:02:56.3]} 8. c3 {[%clk 0:03:02]} 8... d6
{[%clk 0:02:56.7]} 9. O-O {[%clk 0:03:02.4]} 9... Nbd7 {[%clk 0:02:57]} 10. Bh2
{[%clk 0:03:02.8]} 10... a6 {[%clk 0:02:57]} 11. a4 {[%clk 0:03:03.2]} 11... Ra7
{[%clk 0:02:57.3]} 12. Qb3 {[%clk 0:03:03.2]} 12... Qa8 {[%clk 0:02:57.1]} 13.
Rfd1 {[%clk 0:03:03.5]} 13... Rb8 {[%clk 0:02:56]} 14. Bc4 {[%clk 0:02:53.9]}
14... Bd5 {[%clk 0:02:54.4]} 15. Bxd5 {[%clk 0:02:31]} 15... Qxd5 {[%clk
0:02:52.8]} 16. Qxd5 {[%clk 0:02:29.4]} 16... Nxd5 {[%clk 0:02:53.7]} 17. e4
{[%clk 0:02:27]} 17... Nc7 {[%clk 0:02:53.8]} 18. e5 {[%clk 0:02:12.1]} 18...
dxe5 {[%clk 0:02:48]} 19. dxe5 {[%clk 0:02:12.3]} 19... Ne6 {[%clk 0:02:44.5]}
20. Nc4 {[%clk 0:02:08.8]} 20... Kf8 {[%clk 0:02:36.2]} 21. Nfd2 {[%clk
0:01:29.2]} 21... Ke8 {[%clk 0:02:33.7]} 22. Ne4 {[%clk 0:01:27.9]} 22... Rc7
{[%clk 0:02:31.3]} 23. f4 {[%clk 0:01:26.6]} 23... b5 {[%clk 0:02:31.2]} 24.
axb5 {[%clk 0:01:26.8]} 24... axb5 {[%clk 0:02:32.1]} 25. Ne3 {[%clk 0:01:27.4]}
25... c4 {[%clk 0:02:29.5]} 26. Nd5 {[%clk 0:01:25.2]} 26... Rcb7 {[%clk
0:02:29.8]} 27. g4 {[%clk 0:01:19.6]} 27... Nec5 {[%clk 0:02:28.9]} 28. Nxc5
{[%clk 0:01:13.7]} 28... Nxc5 {[%clk 0:02:29.8]} 29. f5 {[%clk 0:00:53.3]} 29...
Rd8 {[%clk 0:02:29.6]} 30. f6 {[%clk 0:00:47.8]} 30... exf6 {[%clk 0:02:26.3]}
31. exf6 {[%clk 0:00:48]} 31... Bh6 {[%clk 0:02:26.5]} 32. Nc7+ {[%clk
0:00:34.9]} 32... Rxc7 {[%clk 0:02:24.7]} 33. Bxc7 {[%clk 0:00:35.8]} 33... Rc8
{[%clk 0:02:23.3]} 34. Re1+ {[%clk 0:00:28.2]} 34... Kd7 {[%clk 0:02:21.6]} 35.
Re7+ {[%clk 0:00:26.6]} 35... Kc6 {[%clk 0:02:22.1]} 36. Bg3 {[%clk 0:00:22.4]}
36... Nd3 {[%clk 0:02:20.6]} 37. Ra6+ {[%clk 0:00:17.4]} 37... Kd5 {[%clk
0:02:20.5]} 38. Rb6 {[%clk 0:00:10.1]} 38... b4 {[%clk 0:02:13]} 39. cxb4 {[%clk
0:00:08]} 39... Rd8 {[%clk 0:02:04.5]} 40. Rb5+ {[%clk 0:00:08]} 40... Kd4
{[%clk 0:02:04.5]} 41. Be5+ {[%clk 0:00:04.9]} 41... Nxe5 {[%clk 0:02:04.3]} 42.
Rbxe5 {[%clk 0:00:05.8]} 42... Bf8 {[%clk 0:01:59.7]} 43. Re8 {[%clk 0:00:05.5]}
43... Rd6 {[%clk 0:01:56.5]} 44. Re4+ {[%clk 0:00:03.2]} 44... Kd3 {[%clk
0:01:56.8]} 45. Re3+ {[%clk 0:00:03.7]} 45... Kd2 {[%clk 0:01:56.7]} 46. Re2+
{[%clk 0:00:03.6]} 46... Kd3 {[%clk 0:01:56.2]} 47. Re1 {[%clk 0:00:03.7]} 47...
Kd2 {[%clk 0:01:55.9]} 48. R8e2+ {[%clk 0:00:02.9]} 48... Kd3 {[%clk 0:01:55.1]}
49. Rd1+ {[%clk 0:00:03.8]} 49... Kxe2 {[%clk 0:01:55.6]} 0-1

[Event "*** Titled Tuesday Blitz"]
[Site "Chess.com"]
[Date "2021.03.02"]
[Round "6"]
[White "seorobert1971"]
[Black "Pogosian_Manvel"]
[Result "1-0"]
[WhiteElo "2653"]
[BlackElo "2437"]
[TimeControl "180+1"]
[EndTime "11:06:07 PST"]
[Termination "seorobert1971 won on time"]

1. d4 {[%clk 0:03:00.9]} 1... Nf6 {[%clk 0:02:25.6]} 2. c4 {[%clk 0:03:01.8]}
2... e6 {[%clk 0:02:25.2]} 3. Nc3 {[%clk 0:03:01.7]} 3... d5 {[%clk 0:02:23.9]}
4. Nf3 {[%clk 0:03:01.1]} 4... Be7 {[%clk 0:02:23.4]} 5. Bf4 {[%clk 0:03:00.9]}
5... O-O {[%clk 0:02:23.1]} 6. e3 {[%clk 0:03:01.2]} 6... Nbd7 {[%clk
0:02:21.8]} 7. Rc1 {[%clk 0:02:59.9]} 7... c5 {[%clk 0:02:22.4]} 8. dxc5 {[%clk
0:02:53.9]} 8... Nxc5 {[%clk 0:02:21.8]} 9. cxd5 {[%clk 0:02:50.8]} 9... exd5
{[%clk 0:02:19.5]} 10. Be2 {[%clk 0:02:49.5]} 10... Bf5 {[%clk 0:02:12.7]} 11.
O-O {[%clk 0:02:49.2]} 11... Rc8 {[%clk 0:02:03.7]} 12. Nd4 {[%clk 0:02:48.9]}
12... Be6 {[%clk 0:01:59.4]} 13. Be5 {[%clk 0:02:45.4]} 13... a6 {[%clk
0:01:49.7]} 14. Re1 {[%clk 0:02:44.4]} 14... b5 {[%clk 0:01:49.9]} 15. Bf1
{[%clk 0:02:42.7]} 15... Qb6 {[%clk 0:01:46.2]} 16. a3 {[%clk 0:02:34.3]} 16...
Rfd8 {[%clk 0:01:45.9]} 17. Nf3 {[%clk 0:02:27.3]} 17... Nce4 {[%clk 0:01:33.3]}
18. Bd4 {[%clk 0:02:24.3]} 18... Qb8 {[%clk 0:01:30.6]} 19. h3 {[%clk
0:02:18.5]} 19... Nxc3 {[%clk 0:01:22.9]} 20. Rxc3 {[%clk 0:02:17.6]} 20... Ne4
{[%clk 0:01:14.6]} 21. Rxc8 {[%clk 0:02:15]} 21... Rxc8 {[%clk 0:01:11]} 22. Bd3
{[%clk 0:02:13.9]} 22... Qc7 {[%clk 0:01:03.2]} 23. Qe2 {[%clk 0:02:10.6]} 23...
h6 {[%clk 0:01:00.4]} 24. Rd1 {[%clk 0:02:09.6]} 24... Nc5 {[%clk 0:00:51.6]}
25. Be5 {[%clk 0:02:01]} 25... Qd7 {[%clk 0:00:45.3]} 26. Bb1 {[%clk 0:01:50.1]}
26... Qe8 {[%clk 0:00:40.1]} 27. Nd4 {[%clk 0:01:47.1]} 27... Bf8 {[%clk
0:00:21.7]} 28. Nxe6 {[%clk 0:01:45]} 28... Qxe6 {[%clk 0:00:12.6]} 29. Bd4
{[%clk 0:01:43.5]} 29... Ne4 {[%clk 0:00:09.6]} 30. Bd3 {[%clk 0:01:37.8]} 30...
Re8 {[%clk 0:00:04.7]} 31. Qc2 {[%clk 0:01:35.1]} 31... Bd6 {[%clk 0:00:04.6]}
32. Rc1 {[%clk 0:01:33.2]} 32... Bb8 {[%clk 0:00:04.4]} 33. Bxe4 {[%clk
0:01:30.7]} 33... dxe4 {[%clk 0:00:04.3]} 34. Qc6 {[%clk 0:01:29.9]} 34... Qxc6
{[%clk 0:00:02.5]} 35. Rxc6 {[%clk 0:01:29.4]} 35... a5 {[%clk 0:00:01.2]} 36.
Ra6 {[%clk 0:01:25.3]} 1-0

[Event "*** Titled Tuesday Blitz"]
[Site "Chess.com"]
[Date "2021.03.02"]
[Round "6"]
[White "Hikaru"]
[Black "TigrVShlyape"]
[Result "1-0"]
[WhiteElo "3246"]
[BlackElo "2902"]
[TimeControl "180+1"]
[EndTime "11:06:12 PST"]
[Termination "Hikaru won on time"]

1. e4 {[%clk 0:03:00.9]} 1... c5 {[%clk 0:02:59.4]} 2. Nf3 {[%clk 0:02:58.3]}
2... e6 {[%clk 0:02:59.6]} 3. c3 {[%clk 0:02:58.1]} 3... Nf6 {[%clk 0:02:55.6]}
4. Bd3 {[%clk 0:02:55.4]} 4... d6 {[%clk 0:02:43.3]} 5. Bc2 {[%clk 0:02:55]}
5... Nc6 {[%clk 0:02:41.9]} 6. d4 {[%clk 0:02:54.9]} 6... cxd4 {[%clk
0:02:37.4]} 7. cxd4 {[%clk 0:02:55.8]} 7... Nb4 {[%clk 0:02:30.1]} 8. Ba4+
{[%clk 0:02:43.9]} 8... Bd7 {[%clk 0:02:29.4]} 9. Nc3 {[%clk 0:02:40.6]} 9... d5
{[%clk 0:01:34.4]} 10. Ne5 {[%clk 0:02:28.8]} 10... dxe4 {[%clk 0:01:09.3]} 11.
O-O {[%clk 0:02:12.4]} 11... Nc6 {[%clk 0:01:03.2]} 12. Bg5 {[%clk 0:02:02.6]}
12... Be7 {[%clk 0:00:57.6]} 13. Bxf6 {[%clk 0:02:01.4]} 13... Bxf6 {[%clk
0:00:44.3]} 14. Nxe4 {[%clk 0:02:01.1]} 14... Be7 {[%clk 0:00:16.3]} 15. Nxd7
{[%clk 0:01:47.8]} 15... Qxd7 {[%clk 0:00:16.1]} 16. Nc3 {[%clk 0:01:48.5]}
16... Rd8 {[%clk 0:00:12.7]} 17. Qg4 {[%clk 0:01:32.2]} 17... O-O {[%clk
0:00:12.4]} 18. Rfd1 {[%clk 0:01:32.9]} 18... Bf6 {[%clk 0:00:11.1]} 19. Ne4
{[%clk 0:01:25.2]} 19... Qe7 {[%clk 0:00:09.4]} 20. Bxc6 {[%clk 0:01:20.3]}
20... bxc6 {[%clk 0:00:09.4]} 21. Nxf6+ {[%clk 0:01:20.9]} 21... Qxf6 {[%clk
0:00:09.3]} 22. Rac1 {[%clk 0:01:21.8]} 22... Rd6 {[%clk 0:00:08.9]} 23. Qe4
{[%clk 0:01:19.6]} 23... Rc8 {[%clk 0:00:07.3]} 24. b4 {[%clk 0:01:14.2]} 24...
a6 {[%clk 0:00:04.2]} 25. a4 {[%clk 0:01:13.7]} 25... Qg6 {[%clk 0:00:04.3]} 26.
Qe2 {[%clk 0:01:10.9]} 26... Ra8 {[%clk 0:00:03.5]} 27. Qe5 {[%clk 0:01:01.3]}
27... Rd5 {[%clk 0:00:02.6]} 28. Qc7 {[%clk 0:01:02]} 28... h6 {[%clk
0:00:02.1]} 29. Qxc6 {[%clk 0:01:01.3]} 29... Rdd8 {[%clk 0:00:01.8]} 30. h3
{[%clk 0:00:57.4]} 1-0

[Event "*** Titled Tuesday Blitz"]
[Site "Chess.com"]
[Date "2021.03.02"]
[Round "6"]
[White "c_r_e_e_p_e_r"]
[Black "PushingpawnsNYC"]
[Result "0-1"]
[WhiteElo "2410"]
[BlackElo "2308"]
[TimeControl "180+1"]
[EndTime "11:06:13 PST"]
[Termination "PushingpawnsNYC won by checkmate"]

1. d4 {[%clk 0:03:00.9]} 1... Nf6 {[%clk 0:02:59.2]} 2. c4 {[%clk 0:03:01.4]}
2... g6 {[%clk 0:02:59.4]} 3. Nc3 {[%clk 0:03:01.5]} 3... Bg7 {[%clk 0:03:00]}
4. f3 {[%clk 0:03:02.1]} 4... d6 {[%clk 0:03:00.6]} 5. e4 {[%clk 0:03:02.4]}
5... O-O {[%clk 0:03:01.2]} 6. Nge2 {[%clk 0:03:03]} 6... e5 {[%clk 0:03:00.8]}
7. d5 {[%clk 0:03:03.2]} 7... c6 {[%clk 0:02:59.6]} 8. Bg5 {[%clk 0:03:00.9]}
8... h6 {[%clk 0:02:58.5]} 9. Be3 {[%clk 0:02:59.9]} 9... a6 {[%clk 0:02:55.7]}
10. Qd2 {[%clk 0:03:00.2]} 10... Kh7 {[%clk 0:02:55]} 11. O-O-O {[%clk
0:02:59.1]} 11... c5 {[%clk 0:02:46.4]} 12. g4 {[%clk 0:02:53.5]} 12... b5
{[%clk 0:02:38.4]} 13. Ng3 {[%clk 0:02:52.9]} 13... Nbd7 {[%clk 0:02:17.5]} 14.
h4 {[%clk 0:02:52]} 14... Ng8 {[%clk 0:02:14.9]} 15. h5 {[%clk 0:02:15]} 15...
g5 {[%clk 0:02:05.4]} 16. Nf5 {[%clk 0:02:15.3]} 16... Nb6 {[%clk 0:02:04.3]}
17. cxb5 {[%clk 0:01:58.9]} 17... axb5 {[%clk 0:02:02.7]} 18. Nxb5 {[%clk
0:01:59.2]} 18... Rxa2 {[%clk 0:01:59.1]} 19. Nbxd6 {[%clk 0:01:45.3]} 19...
Bxf5 {[%clk 0:01:46.3]} 20. Nxf5 {[%clk 0:01:39.2]} 20... Na4 {[%clk 0:01:46.5]}
21. Qc2 {[%clk 0:00:50]} 21... Qb6 {[%clk 0:01:36.5]} 22. Bc4 {[%clk 0:00:37.2]}
22... Rxb2 {[%clk 0:01:27.9]} 23. Qxa4 {[%clk 0:00:36.9]} 23... Rb4 {[%clk
0:01:13.8]} 24. Qc2 {[%clk 0:00:25.7]} 24... Ra8 {[%clk 0:01:11.5]} 25. Ba2
{[%clk 0:00:19]} 25... Rba4 {[%clk 0:01:02.2]} 26. Bxc5 {[%clk 0:00:18.9]} 26...
Qa5 {[%clk 0:01:00.8]} 27. Bb1 {[%clk 0:00:15.1]} 27... Rc8 {[%clk 0:00:56.9]}
28. Nxg7 {[%clk 0:00:03]} 28... Rxc5 {[%clk 0:00:56.5]} 29. Nf5 {[%clk
0:00:03.2]} 29... Rxc2+ {[%clk 0:00:55.2]} 30. Bxc2 {[%clk 0:00:02.8]} 30...
Ra1+ {[%clk 0:00:55.3]} 31. Kb2 {[%clk 0:00:01.4]} 31... Qa3# {[%clk 0:00:55]}
0-1

[Event "*** Titled Tuesday Blitz"]
[Site "Chess.com"]
[Date "2021.03.02"]
[Round "6"]
[White "urutodo"]
[Black "AntonovaNadezhda"]
[Result "1-0"]
[WhiteElo "2301"]
[BlackElo "2127"]
[TimeControl "180+1"]
[EndTime "11:06:14 PST"]
[Termination "urutodo won by resignation"]

1. e4 {[%clk 0:03:00.9]} 1... c5 {[%clk 0:02:54.4]} 2. Nf3 {[%clk 0:03:00.5]}
2... d6 {[%clk 0:02:55]} 3. c3 {[%clk 0:03:00.4]} 3... Nf6 {[%clk 0:02:53.5]} 4.
Bd3 {[%clk 0:03:00.8]} 4... g6 {[%clk 0:02:51.7]} 5. Bc2 {[%clk 0:03:01]} 5...
Bg7 {[%clk 0:02:51.8]} 6. O-O {[%clk 0:03:01.6]} 6... O-O {[%clk 0:02:51.5]} 7.
Re1 {[%clk 0:03:01.4]} 7... b6 {[%clk 0:02:51.5]} 8. h3 {[%clk 0:03:01.4]} 8...
Bb7 {[%clk 0:02:51.5]} 9. d4 {[%clk 0:03:02]} 9... cxd4 {[%clk 0:02:50.7]} 10.
cxd4 {[%clk 0:03:02.9]} 10... Nc6 {[%clk 0:02:50.7]} 11. Nc3 {[%clk 0:03:00.7]}
11... Rc8 {[%clk 0:02:48.9]} 12. Be3 {[%clk 0:02:53.3]} 12... Nb4 {[%clk
0:02:44.1]} 13. Bb1 {[%clk 0:02:52.8]} 13... a6 {[%clk 0:02:42.1]} 14. d5 {[%clk
0:02:48.3]} 14... a5 {[%clk 0:02:30.8]} 15. a3 {[%clk 0:02:10.1]} 15... Na6
{[%clk 0:02:30.2]} 16. Bc2 {[%clk 0:02:10.6]} 16... Nc5 {[%clk 0:02:27.1]} 17.
Qd2 {[%clk 0:01:54.3]} 17... Re8 {[%clk 0:02:24.4]} 18. Rac1 {[%clk 0:01:52.9]}
18... Nfd7 {[%clk 0:02:17.4]} 19. Bd4 {[%clk 0:01:51.9]} 19... Ne5 {[%clk
0:02:12.4]} 20. Nxe5 {[%clk 0:01:52.1]} 20... dxe5 {[%clk 0:02:12.3]} 21. Be3
{[%clk 0:01:52.2]} 21... Ba6 {[%clk 0:02:06.3]} 22. b4 {[%clk 0:01:49.4]} 22...
axb4 {[%clk 0:02:00.9]} 23. axb4 {[%clk 0:01:48.9]} 23... Nd7 {[%clk 0:01:53.7]}
24. Ba4 {[%clk 0:01:47.2]} 24... Rc7 {[%clk 0:01:30.7]} 25. Bc6 {[%clk
0:01:37.4]} 25... Rf8 {[%clk 0:01:26.4]} 26. b5 {[%clk 0:01:36.8]} 26... Bc8
{[%clk 0:01:23.6]} 27. Na4 {[%clk 0:01:36.2]} 27... f5 {[%clk 0:01:04.2]} 28. f3
{[%clk 0:01:23.5]} 28... fxe4 {[%clk 0:00:59.2]} 29. fxe4 {[%clk 0:01:23.5]}
29... Nf6 {[%clk 0:00:59.3]} 30. Bxb6 {[%clk 0:01:18.7]} 30... Bd7 {[%clk
0:00:55.2]} 31. Bxc7 {[%clk 0:01:16.9]} 31... Qxc7 {[%clk 0:00:54.5]} 32. b6
{[%clk 0:01:14.5]} 32... Qd8 {[%clk 0:00:51.5]} 33. b7 {[%clk 0:01:10.4]} 33...
h5 {[%clk 0:00:46.8]} 34. Qb4 {[%clk 0:01:01.9]} 34... Bh6 {[%clk 0:00:41.6]}
35. Bxd7 {[%clk 0:00:58.2]} 35... Nxd7 {[%clk 0:00:37.7]} 36. Rc8 {[%clk
0:00:56]} 36... Qxc8 {[%clk 0:00:32.1]} 37. bxc8=Q {[%clk 0:00:55.4]} 37... Rxc8
{[%clk 0:00:33]} 38. Qxe7 {[%clk 0:00:53]} 38... Nf8 {[%clk 0:00:30.3]} 1-0

[Event "*** Titled Tuesday Blitz"]
[Site "Chess.com"]
[Date "2021.03.02"]
[Round "6"]
[White "rachidhuilda"]
[Black "SlavenPastar"]
[Result "0-1"]
[WhiteElo "2290"]
[BlackElo "2574"]
[TimeControl "180+1"]
[EndTime "11:06:15 PST"]
[Termination "SlavenPastar won on time"]

1. d4 {[%clk 0:03:00.9]} 1... b6 {[%clk 0:03:00.9]} 2. e4 {[%clk 0:03:00]} 2...
Bb7 {[%clk 0:03:01.2]} 3. Bd3 {[%clk 0:02:59.3]} 3... Nf6 {[%clk 0:03:01.6]} 4.
Qe2 {[%clk 0:02:55.5]} 4... e6 {[%clk 0:03:01.5]} 5. Nf3 {[%clk 0:02:54.1]} 5...
d5 {[%clk 0:03:01.9]} 6. Nbd2 {[%clk 0:02:52.1]} 6... dxe4 {[%clk 0:02:58.9]} 7.
Nxe4 {[%clk 0:02:51.6]} 7... Nbd7 {[%clk 0:02:58.8]} 8. Bg5 {[%clk 0:02:49.2]}
8... Be7 {[%clk 0:02:56.4]} 9. Nxf6+ {[%clk 0:02:43.9]} 9... Nxf6 {[%clk
0:02:51.7]} 10. O-O-O {[%clk 0:02:39.5]} 10... Qd5 {[%clk 0:02:43.4]} 11. Kb1
{[%clk 0:02:14.3]} 11... O-O {[%clk 0:02:33.8]} 12. Rhe1 {[%clk 0:02:08.6]}
12... Qa5 {[%clk 0:02:25.2]} 13. Bd2 {[%clk 0:02:04.1]} 13... Qh5 {[%clk
0:02:23.7]} 14. h3 {[%clk 0:01:33.7]} 14... Rfd8 {[%clk 0:02:18.3]} 15. c3
{[%clk 0:01:24]} 15... c5 {[%clk 0:02:16.5]} 16. dxc5 {[%clk 0:01:19.4]} 16...
Bxc5 {[%clk 0:02:10]} 17. Bc2 {[%clk 0:01:03.4]} 17... Rd7 {[%clk 0:01:55.3]}
18. Bc1 {[%clk 0:01:01.1]} 18... Rad8 {[%clk 0:01:50.3]} 19. Rxd7 {[%clk
0:01:00.9]} 19... Rxd7 {[%clk 0:01:51.2]} 20. Rd1 {[%clk 0:00:59.8]} 20... Bxf3
{[%clk 0:01:44.4]} 21. Qxf3 {[%clk 0:00:45]} 21... Qxf3 {[%clk 0:01:43.3]} 22.
gxf3 {[%clk 0:00:43.8]} 22... Bxf2 {[%clk 0:01:35.1]} 23. Rxd7 {[%clk
0:00:39.7]} 23... Nxd7 {[%clk 0:01:36]} 24. b4 {[%clk 0:00:37.5]} 24... f5
{[%clk 0:01:32.5]} 25. c4 {[%clk 0:00:22.9]} 25... Kf7 {[%clk 0:01:32.3]} 26.
Kb2 {[%clk 0:00:22]} 26... Ne5 {[%clk 0:01:30.8]} 27. Kb3 {[%clk 0:00:17.5]}
27... Nxf3 {[%clk 0:01:30.5]} 28. a4 {[%clk 0:00:17.9]} 28... Nd4+ {[%clk
0:01:27.6]} 29. Kc3 {[%clk 0:00:18]} 29... Nxc2 {[%clk 0:01:25.6]} 30. Kxc2
{[%clk 0:00:18.4]} 30... e5 {[%clk 0:01:21.7]} 31. c5 {[%clk 0:00:08]} 31...
bxc5 {[%clk 0:01:20.7]} 32. b5 {[%clk 0:00:08.3]} 32... Ke6 {[%clk 0:01:11.4]}
33. a5 {[%clk 0:00:06.7]} 33... Kd7 {[%clk 0:01:06.7]} 0-1